[Event "45th FIDE Olympiad 2024"]
[Site "Budapest"]
[Date "2024.09.15"]
[Round "5.129"]
[White "Johnson, Joshua"]
[Black "Ferreira, Jorge Viterbo"]
[Result "0-1"]
[ECO "B92"]
[WhiteElo "2267"]
[BlackElo "2535"]
[Annotator "TA"]
[PlyCount "96"]
[EventDate "2024.09.05"]
[EventType "team-tourn"]
[EventCountry "HUN"]
[SourceTitle "playchess.com"]
[Source "ChessBase"]
[SourceQuality "1"]
[WhiteTeam "Trinidad & Tobago"]
[BlackTeam "Portugal"]
[BlackTeamCountry "POR"]
[TimeControl "40/5400+30:1800+30"]

{[%evp 17,96,14,4,6,27,14,3,14,17,10,15,10,17,1,25,0,45,43,35,-14,-19,-110,-100,-154,-164,-202,-197,-540,-508,-541,-477,-1373,-938,-1081,-375,-356,-272,-310,-296,-310,-261,-289,-79,-88,-80,-68,-75,-73,-74,-82,-77,-176,-178,-222,-151,-206,-197,-216,-204,-195,-206,-208,0,-98,0,-201,-201,-352,-309,-1154,-1154,-1146,-1146,-1146,-1146,-1146,-1146,-1116,-1068,-1028,-1017]} 1. e4 c5 2. Nf3 d6 3. d4 cxd4 4. Nxd4 Nf6 5. Nc3 a6 6. Be2 e5 7. Nb3 Be7 8. O-O O-O 9. Qd3 Be6 10. Bd2 Nbd7 11. Nd5 Bxd5 12. exd5 {The position is equal.} Ne8 13. Na5 {Black is weak on the light squares} Rb8 14. b4 Bg5 {[%cal Oe5e4]} 15. Be1 f5 16. f3 f4 17. c4 Bh4 18. g3 (18. Bd2 $14 {deserves consideration.}) 18... Qg5 $11 19. Kg2 (19. Rf2 $11 {keeps the balance.} fxg3 20. hxg3 Bxg3 21. Rg2) 19... Nef6 $17 {[%cal Oe5e4]} 20. Qd2 (20. Nb3 $142) 20... Qg6 21. Bd3 e4 22. Bxe4 (22. Qxf4 exd3 23. Qxh4) 22... Nxe4 $19 23. fxe4 Qxe4+ 24. Kh3 {[#]} (24. Kg1 $142 fxg3 25. Bxg3 (25. Rxf8+ $2 Rxf8 26. hxg3 Ne5 $19) 25... Bxg3 26. hxg3) 24... f3 $1 {[%cal Oh7h5]} 25. Rd1 (25. Bf2 Ne5) 25... Bd8 $2 (25... g5 {[%cal Od7e5] ( -> ...Ne5!)} 26. Qd4 Qg6 27. gxh4 Rf4) 26. Qd3 Qe8 {[%cal Re8h5]} (26... Qxd3 27. Rxd3 Ne5 28. Rb3 $17) 27. Rxf3 Qh5+ 28. Kg2 Bxa5 29. g4 (29. Rxf8+ $2 Rxf8 30. h3 Ne5 $19) 29... Qxg4+ $2 (29... Rxf3 30. Qxf3 (30. gxh5 $2 Rxd3 31. Rxd3 Re8 $19) 30... Qg6 31. bxa5 $15) (29... Qg5 $1 $19 {is more deadly. White must now prevent ...Ne5.} 30. Rh3 (30. bxa5 $2 Ne5 $19) 30... Bd8 (30... Qxg4+ 31. Rg3 $17) 31. Qxh7+ Kf7) 30. Rg3 $17 Qf4 31. Bc3 Ne5 32. Bxe5 Qxe5 (32... dxe5 33. bxa5 Rbc8 34. d6) 33. bxa5 Rbe8 34. Rd2 (34. Rb1 $17 {might work better.}) 34... Rf4 $19 {...Qe1 would now be deadly.} 35. Kh1 Re7 36. Rdg2 (36. Rgg2 $17) 36... Rd4 37. Qf1 {[#]} Rf7 38. Qe2 Re4 {Inhibits Re3.} 39. Qd3 Rd4 (39... g6 $19 {aiming for ...Re1+.} 40. Rf3 Re1+ 41. Rg1 Re2) 40. Qe2 $17 {[#]} Re4 {Black is more active.} (40... Qxe2 $1 $17 41. Rxe2 Rxc4 42. Re8+ Rf8) 41. Qd3 $19 g6 $40 {[%mdl 128] Black has strong attack.} 42. Rc2 $2 (42. h3) 42... Rff4 43. Rf3 $2 (43. Rcg2) 43... Re1+ {Black is clearly winning.} 44. Kg2 Rg4+ 45. Rg3 Rxg3+ (45... Re3 46. Qxe3 Qxe3 47. Rxg4 $15) 46. Qxg3 Qe4+ 47. Kf2 Rd1 (47... Qxc2+ 48. Kxe1 Qb1+ (48... Qxa2 49. Qxd6 Qxa5+ 50. Ke2 $11) 49. Kf2 $17) (47... Rh1 $2 48. Re2 Qd4+ (48... Qxc4 49. Qxd6 Qd4+ 50. Re3 $15) 49. Qe3 Qh4+ (49... Qxc4 50. Qe8+ Kg7 51. Qe7+ Kh6 52. Qe3+ Kg7 53. Qe7+ Kh6 54. Qe3+ Kg7 55. Qe7+ $11) (49... Rxh2+ $2 50. Kg1 $19) 50. Kf3 Rf1+ (50... Rxh2 51. Rxh2 Qxh2 52. Qe7 $11) (50... Qxc4 51. Qe6+ Kg7 52. Qd7+ Kh6 53. Qh3+ Kg5 54. Rg2+ Kf6 55. Qe6+ Kg7 56. Qe7+ Kh6 57. Qg5+ Kg7 58. Qe7+ Kh6 59. Qe3+ Kg7 60. Qe7+ $11) (50... Qh3+ 51. Ke4 $17) 51. Rf2 (51. Kg2 $2 Rf7 $19) 51... Rxf2+ (51... Qxc4 52. Qe8+ Kg7 53. Qd7+ Kh8 54. Qd8+ Kg7 55. Qd7+ Kh8 56. Qe8+ Kg7 57. Qd7+ $11) 52. Qxf2 Qxc4 53. Qd2 $19) 48. Re2 Qf5+ {Weighted Error Value: White=0.63/Black=0.57.  Missed win:     	---       	Black=1      Mistake:       	White=9     	Black=2      Inaccurate:     	---       	Black=3      OK:         	White=9     	Black=12     Best:        	White=4     	Black=4} 0-1

[Event "45th FIDE Olympiad 2024"]
[Site "Budapest"]
[Date "2024.09.15"]
[Round "5.130"]
[White "Pereira, Ruben"]
[Black "Cupid, Kevin"]
[Result "1-0"]
[ECO "B11"]
[WhiteElo "2457"]
[BlackElo "2201"]
[Annotator "TA"]
[PlyCount "73"]
[EventDate "2024.09.05"]
[EventType "team-tourn"]
[EventCountry "HUN"]
[SourceTitle "playchess.com"]
[Source "ChessBase"]
[SourceQuality "1"]
[WhiteTeam "Portugal"]
[BlackTeam "Trinidad & Tobago"]
[WhiteTeamCountry "POR"]
[TimeControl "40/5400+30:1800+30"]

{[%evp 9,73,43,77,45,71,51,50,-4,70,25,61,38,38,27,23,-16,-11,-16,88,79,86,92,120,116,179,208,254,238,293,305,305,275,306,306,366,397,354,414,380,346,338,338,623,654,640,660,793,791,747,769,787,794,843,840,829,797,829,821,931,935,1174,1159,1149,1115,1404,1200]} 1. e4 c6 2. Nc3 d5 3. Nf3 a6 4. h3 g6 5. d4 Bg7 6. Be3 Qb6 7. a3 dxe4 8. Nd2 (8. Nxe4 $14 Nd7 9. b3) 8... Bh6 (8... f5 $11) 9. Nc4 Qd8 10. Qd2 {White is more active.} Bxe3 11. Qxe3 b5 12. Ne5 {[%mdl 1024] White has compensation.} f6 {[%cal Bf7f6,Bf6f5][%mdl 32]} 13. Ng4 h5 (13... f5 $11) 14. Nh2 $36 {[%mdl 2048] White has strong initiative. White now steadily converts the win.} Nh6 15. O-O-O {[%cal Of1e2]} (15. Qxe4 Bf5 16. Qe2 Qxd4 $11) (15. Nxe4 $6 Nf5 16. Qd2 (16. Nxf6+ $2 Kf8 $19) 16... Qxd4 $11) 15... Kf7 ({Of course not} 15... f5 16. f3 $16) 16. Qxe4 Ra7 (16... Bf5 $16 {is a better defense.} 17. Qe3 Nd7) 17. g4 $18 {[%cal Bg2g4,Bg4h5][%mdl 32]} f5 18. Qf3 Rd7 19. gxh5 Rxd4 20. Be2 {Threatens to win with Qg3.} e5 21. Qe3 {Inhibits Qg5.} Qf6 22. Nf3 {[%csl LRd4,LRe5]} Rxd1+ 23. Rxd1 ({Not} 23. Bxd1 Nd7 24. Rg1 gxh5 $16) 23... Nd7 {[#]} 24. Rxd7+ {[%mdl 512]} Bxd7 25. Nxe5+ Kg7 $2 (25... Ke8 26. Nxg6+ Kf7 27. Nxh8+ Qxh8) 26. Nxd7 {A dynamic duo of knights. White is clearly winning.} Qd6 27. Ne5 Re8 {[%cal Bh8e8,Be8e6,Be6h6,Bh6h3][%mdl 32] [#]} 28. Qxh6+ $3 {[%mdl 512]} Kxh6 29. Nf7+ (29. Nxg6 $2 {too greedy.} Qh2 30. Bd3 Qh1+ (30... Qxh3 $2 31. Ne2 $19) (30... Qxf2 $2 31. Kb1 $19) 31. Nd1 Re1 $19 (31... Qxh3 $2 32. Ne3 $19)) 29... Kg7 30. Nxd6 {[%cal Bf7d6,Bd6b7,Bb7c5][%mdl 32]} Re6 31. Nb7 gxh5 32. Bxh5 Rh6 33. Bf3 Kf7 {[#]} 34. Bxc6 $1 Rxh3 (34... Kf8 35. Bg2) 35. Nc5 Rh6 36. Bb7 Rb6 37. b4 {Weighted Error Value: White=0.15 (very precise) /Black=0.47.  Mistake:       	White=1     	Black=4      Inaccurate:     	White=2     	Black=3      OK:         	White=7     	Black=6      Best:        	White=3     	Black=2} 1-0

[Event "45th FIDE Olympiad 2024"]
[Site "Budapest"]
[Date "2024.09.15"]
[Round "5.131"]
[White "Harper, Ryan"]
[Black "Sousa, Andre Ventura"]
[Result "0-1"]
[ECO "B90"]
[WhiteElo "2124"]
[BlackElo "2403"]
[Annotator "TA"]
[PlyCount "108"]
[EventDate "2024.09.05"]
[EventType "team-tourn"]
[EventCountry "HUN"]
[SourceTitle "playchess.com"]
[Source "ChessBase"]
[SourceQuality "1"]
[WhiteTeam "Trinidad & Tobago"]
[BlackTeam "Portugal"]
[BlackTeamCountry "POR"]
[TimeControl "40/5400+30:1800+30"]

{[%evp 18,108,3,0,0,0,0,-31,-31,-25,0,0,0,0,0,0,0,0,0,0,0,0,6,-31,-31,-35,-31,-47,-44,-66,-61,-89,-99,-122,-118,-184,-203,-279,-289,-305,-286,-465,-436,-485,-472,-541,-539,-562,-372,-586,-571,-592,-550,-597,-422,-422,-422,-429,-431,-431,-431,-417,-420,-420,-323,-342,-305,-593,-593,-620,-670,-1145,-1048,-1095,-1052,-1000,-964,-957,-926,-913,-911,-904,-894,-846,-824,-1172,-1106,-29980,-29981,-29988,-29989,-29989,-29990]} 1. e4 c5 2. Nf3 {[%cal Bg1f3,Bf3d4,Bd4b3,Bb3a5][%mdl 32]} d6 3. d4 cxd4 4. Nxd4 Nf6 5. Nc3 a6 6. f3 e5 7. Nb3 Be6 8. Nd5 Bxd5 9. exd5 Nbd7 10. Be3 Be7 11. Qd2 O-O 12. Na5 {[%cal Of1e2]} Qc7 {Black is slightly better.} 13. Be2 Rfc8 14. c4 Bd8 15. b4 Qb8 16. O-O Bxa5 17. bxa5 Qc7 18. Rab1 Nc5 19. Kh1 Qe7 20. f4 Nfe4 {A dynamic duo of knights.} 21. Qe1 exf4 22. Bxf4 Rc7 23. Rf3 Re8 24. Qf1 {Black converts the advantage convincingly.} f5 25. Rd1 Qd8 {Black is more active.} 26. Rh3 (26. Be3 $17 {might work better.}) 26... Rce7 $19 27. Bf3 Qxa5 28. Bxe4 Nxe4 29. Rf3 {[#] Against Nf2+} (29. Be3) 29... Nf2+ $1 {[%mdl 512]} 30. Rxf2 {[%cal Of4d2]} Re1 31. Rxe1 Rxe1 32. Bxd6 Rxf1+ 33. Rxf1 Qxa2 {[%mdl 4096] Endgame. KQ-KRB} 34. h3 Qxc4 35. Rxf5 {[%csl Gd6][%cal Rf5f8]} Qc1+ 36. Kh2 {[%csl Gd6][%cal Rf5f8]} Qc8 37. Rf3 Qd8 38. Ba3 a5 {[%cal Ob7b5]} ({Weaker is} 38... Qxd5 39. Rf8#) 39. d6 {[%cal Od6d7]} b5 {Hoping for ...b4.} 40. Bc5 {[%cal Od6d7] And now d7! would win.} g6 41. Re3 Qc8 42. Bb6 (42. Bd4 Qd7 43. Be5) 42... Qc6 $1 {[%csl LRb6,LRd6]} 43. Bc7 a4 {...b4 is the strong threat.} 44. Re7 a3 {aiming for ...a2.} 45. Bb8 Qc8 46. Ba7 a2 47. Bd4 {Wards off a1Q} Qc6 48. Be5 {[#]} a1=Q $1 49. Bxa1 Qxd6+ 50. Re5 Kf7 51. g4 Qd1 {White must now prevent ...Qc2+.} 52. Kg3 Qxa1 {Black mates.} 53. Rxb5 Qe1+ 54. Kf4 Qf1+ {Weighted Error Value: White=0.64/Black=0.11 (very precise) .  Mistake:       	White=3     	---        Inaccurate:     	White=6     	---        OK:         	White=13    	Black=22     Best:        	White=1     	Black=2} 0-1

[Event "45th FIDE Olympiad 2024"]
[Site "Budapest"]
[Date "2024.09.15"]
[Round "5.132"]
[White "Barria Santos, Jose Guilherme"]
[Black "McIntosh, Isaiah"]
[Result "0-1"]
[ECO "C65"]
[WhiteElo "2411"]
[BlackElo "2249"]
[Annotator "TA"]
[PlyCount "20"]
[EventDate "2024.09.05"]
[EventType "team-tourn"]
[EventCountry "HUN"]
[SourceTitle "playchess.com"]
[Source "ChessBase"]
[SourceQuality "1"]
[WhiteTeam "Portugal"]
[BlackTeam "Trinidad & Tobago"]
[WhiteTeamCountry "POR"]
[TimeControl "40/5400+30:1800+30"]

{[%evp 9,20,18,9,4,2,-57,122,25,33,18,32,18,49]} 1. e4 e5 2. Nf3 Nc6 3. Bb5 Nf6 4. d3 Bc5 5. c3 d5 6. exd5 Qxd5 {[%cal Oc5f2] Hoping for ...Bxf2+!} 7. O-O (7. Bc4 $11 Qd7 8. O-O) 7... Qd8 $2 {[#]} (7... Bxf2+ $15 {keeps the upper hand.} 8. Rxf2 Qxb5) 8. Bc4 (8. Nxe5 $16 O-O 9. Nxc6 bxc6 10. Bxc6) 8... O-O $11 9. Nbd2 Bf5 10. Qe2 Re8 {[%mdl 32768] Weighted Error Value: White=0.37/Black=0.66.  Mistake:       	White=2     	Black=1      Inaccurate:     	---       	Black=1      OK:         	White=1     	Black=1     . Loss on time!?} 0-1

[Event "45th FIDE Olympiad 2024"]
[Site "Budapest"]
[Date "2024.09.15"]
[Round "5.133"]
[White "El Jawich, Amro"]
[Black "Kantor, Gergely"]
[Result "0-1"]
[ECO "C44"]
[WhiteElo "2296"]
[BlackElo "2537"]
[Annotator "TA"]
[PlyCount "50"]
[EventDate "2024.09.05"]
[EventType "team-tourn"]
[EventCountry "HUN"]
[SourceTitle "playchess.com"]
[Source "ChessBase"]
[SourceQuality "1"]
[WhiteTeam "Lebanon"]
[BlackTeam "Hungary C"]
[WhiteTeamCountry "LBN"]
[TimeControl "40/5400+30:1800+30"]

{[%evp 12,50,11,0,-5,-33,-20,-49,-42,-50,0,0,0,0,0,0,0,0,0,0,-4,-39,-45,-119,0,-31,-27,-253,-272,-339,-328,-340,-339,-715,-712,-920,-895,-1408,-1391,-29982,-1537]} 1. e4 e5 2. Nf3 Nc6 3. d4 exd4 4. Bc4 Bb4+ {[%cal Bf8b4,Bb4a5,Ba5b6][%mdl 32]} 5. c3 dxc3 6. bxc3 Ba5 7. O-O {[%mdl 1024] White has compensation.} Bb6 8. Re1 Nge7 9. Ba3 d6 {Black is slightly better.} 10. e5 {[%cal Re5d6]} O-O ({Black should try} 10... d5 $15 11. Bd3 h6) 11. exd6 $11 cxd6 12. Qxd6 Ng6 13. Nbd2 Bf5 14. Qg3 Re8 15. Rxe8+ Qxe8 16. Ng5 Nce5 {...Rd8 would now be deadly.} 17. Bb3 (17. Re1 Nxc4 (17... Qd8 $2 18. Ngf3 $19) 18. Rxe8+ Rxe8 $19) (17. Bd6 $15) 17... Qc6 {Dancing on a razor blade.} (17... h6 $17 18. Nge4 Bxe4 19. Nxe4 Qc6) 18. Re1 Re8 19. Nde4 $2 {[#] This move loses the game for White.} (19. Ndf3 $11 Nxf3+ (19... Qxc3 $2 20. Bxf7+ Kh8 21. Bxe8 $18) 20. Nxf3) 19... h6 $1 $19 20. Nd6 {[#]} hxg5 $1 21. Bxf7+ (21. Nxf5 $2 Nf3+ 22. gxf3 Rxe1+ 23. Kg2 Nf4+ $19 (23... Qxc3 $2 24. Qxg5 Qd3 25. Ng3 $19) (23... Qxc3 $2 24. Qxg5 Qd3 25. Ng3 $19)) 21... Nxf7 22. Nxe8 (22. Rxe8+ Kh7 23. Qf3 Qxf3 (23... Nxd6 24. Qh5#) 24. gxf3) 22... Nf4 {Strongly threatening ...Qb5.} 23. h4 Nd3 {A dynamic duo of knights.} 24. Qb8 Kh7 (24... Nxe1 25. Nf6#) 25. Nxg7 {[#]} Nf4 {Weighted Error Value: White=1.30/Black=0.13 (very precise) .  Loses game:     	White=1     	---        Mistake:       	White=2     	Black=2      Inaccurate:     	White=4     	---        OK:         	White=3     	Black=6      Best:        	White=2     	Black=2      Strong:       	---       	Black=1} 0-1

[Event "45th FIDE Olympiad 2024"]
[Site "Budapest"]
[Date "2024.09.15"]
[Round "5.134"]
[White "Krstulovic, Alex"]
[Black "Arkadan, Adib"]
[Result "1-0"]
[ECO "E52"]
[WhiteElo "2452"]
[BlackElo "2181"]
[Annotator "TA"]
[PlyCount "63"]
[EventDate "2024.09.05"]
[EventType "team-tourn"]
[EventCountry "HUN"]
[SourceTitle "playchess.com"]
[Source "ChessBase"]
[SourceQuality "1"]
[WhiteTeam "Hungary C"]
[BlackTeam "Lebanon"]
[BlackTeamCountry "LBN"]
[TimeControl "40/5400+30:1800+30"]

{[%evp 15,63,0,0,0,25,2,14,-16,-14,0,129,126,95,101,142,111,141,135,129,128,170,177,158,139,143,115,118,120,116,105,125,110,295,300,280,296,287,283,400,404,391,380,696,677,972,821,29996,29990,29990,29991]} 1. d4 Nf6 2. c4 e6 3. Nc3 Bb4 4. e3 O-O 5. Bd2 b6 6. Nf3 Bb7 7. Bd3 d5 8. cxd5 exd5 9. Rc1 c6 10. Qc2 Re8 11. a3 {The position is equal.} Bd6 12. O-O Qe7 {[#]} (12... c5 $11) 13. e4 $1 $16 {[%mdl 512]} dxe4 {[#]} 14. Nxe4 Nbd7 (14... Nxe4 15. Bxe4) 15. Rfe1 {White is more active.} Qf8 16. Nxf6+ Nxf6 17. Bg5 {Black must now prevent Bxf6.} h6 18. Bxf6 gxf6 19. Be4 {[%cal Og2g3]} Re6 20. Nh4 (20. Bxc6 Bxc6 21. Rxe6 Bxf3 22. Rxd6 Qxd6) 20... Rae8 21. Qd3 c5 {[#]} 22. d5 $1 $36 {[%mdl 2048] Keeping Black busy.} Re5 {[%cal Ob7d5] [#]} 23. f4 $1 Rh5 {Black cannot hold the game after this.} (23... R5e7 $16) 24. Qf3 $18 Rxh4 25. Qg3+ Qg7 26. Qxh4 Kh8 (26... Kf8 {was worth a try.} 27. Kh1 (27. Bf3 f5 $18) 27... Bc8) 27. Bf5 Rg8 28. Re2 Bxd5 $2 (28... Bc8) 29. Rc3 Qf8 30. Qxf6+ Rg7 31. Rg3 Kg8 32. Qxh6 {Weighted Error Value: White=0.07 (flawless) /Black=0.68.  Loses game:     	---       	Black=1      Mistake:       	---       	Black=3      Inaccurate:     	White=1     	Black=3      OK:         	White=7     	Black=6      Best:        	White=2     	Black=3      Strong:       	White=2     	---        Brilliant:      	White=2     	---} 1-0

[Event "45th FIDE Olympiad 2024"]
[Site "Budapest"]
[Date "2024.09.15"]
[Round "5.135"]
[White "Assaad, Joe"]
[Black "Juhasz, Agoston"]
[Result "0-1"]
[ECO "B15"]
[WhiteElo "2150"]
[BlackElo "2427"]
[Annotator "TA"]
[PlyCount "60"]
[EventDate "2024.09.05"]
[EventType "team-tourn"]
[EventCountry "HUN"]
[SourceTitle "playchess.com"]
[Source "ChessBase"]
[SourceQuality "1"]
[WhiteTeam "Lebanon"]
[BlackTeam "Hungary C"]
[WhiteTeamCountry "LBN"]
[TimeControl "40/5400+30:1800+30"]

{[%evp 10,60,35,16,15,6,14,12,30,24,29,22,57,39,41,40,39,7,56,-85,-77,-100,-76,-158,-166,-250,-203,-205,-212,-197,-205,-197,-188,-210,-195,-204,-197,-323,-293,-394,-388,-375,-362,-479,-454,-475,-470,-737,-731,-29989,-29990,-29990,-29991]} 1. e4 c6 2. d4 d5 3. Nc3 dxe4 4. Nxe4 Nf6 5. Nxf6+ exf6 6. Be3 Na6 7. a3 Nc7 8. c4 Bd6 {The position is equal.} 9. Bd3 O-O 10. Qc2 h5 11. Ne2 Re8 12. h3 Be6 13. g4 h4 {[#]} (13... b5 $11 {might be stronger.} 14. d5 Bd7 (14... cxd5 15. c5 $14)) 14. g5 fxg5 $17 {Black converts the advantage convincingly.} 15. O-O-O b5 {Threatens to win with ...bxc4.} 16. c5 (16. d5 $142 cxd5 17. c5) 16... Be7 17. f4 (17. Bh7+ $142 Kh8 18. Be4) 17... Nd5 18. Bd2 {[#]} b4 $1 {[%mdl 512]} 19. Rhg1 {[%cal Rf4g5]} bxa3 20. bxa3 gxf4 (20... Bxh3 21. fxg5 Rb8 22. Bh7+ Kh8 23. Be4 $17) 21. Nxf4 Nxf4 22. Bxf4 {[%cal Og1g7] Strongly threatening Rxg7+!} Bf6 (22... Bxh3 $2 23. Rxg7+ Kxg7 24. Rg1+ $18) 23. Bh7+ (23. Qc3 {was worth a try.}) 23... Kh8 $19 {[%cal Od8a5] And now ...Qa5! would win.} 24. Be4 {Hoping for Qe2.} Bd5 ({Less strong is} 24... Bxh3 25. Bxc6 Rc8 26. Bxe8 Qxe8 27. Rde1 $15 (27. d5 $2 Qb5 $19)) (24... Bxd4 $2 {perishes.} 25. Qe2 Kg8 (25... Bxh3 26. Qh5+ Kg8 27. Qh7+ Kf8 28. Rxd4 Ke7 29. Qxg7 Rg8 30. Bd6+ Kd7 31. Qxf7+ Kc8 32. Rxg8 Bd7 33. Qxd7+ Kxd7 34. Bf5#) 26. Qh5 $18) 25. Bf5 Qa5 {Wards off Qc3} 26. Qb2 Be4 27. Bxe4 Rxe4 28. Bg5 {[#]} (28. Be5 $142 Bxe5 29. dxe5) 28... Bxd4 $1 {[%mdl 512]} 29. Qc2 (29. Rxd4 Qxc5+) 29... Qxa3+ 30. Kd2 Rae8 {Weighted Error Value: White=0.75/Black=0.07 (flawless) .  Mistake:       	White=5     	Black=1      Inaccurate:     	White=4     	Black=1      OK:         	White=10    	Black=8      Best:        	---       	Black=3      Brilliant:      	---       	Black=1} 0-1

[Event "45th FIDE Olympiad 2024"]
[Site "Budapest"]
[Date "2024.09.15"]
[Round "5.136"]
[White "Karacsonyi, Gellert"]
[Black "Kassis, Antoine"]
[Result "1-0"]
[ECO "B52"]
[WhiteElo "2403"]
[BlackElo "2085"]
[Annotator "TA"]
[PlyCount "71"]
[EventDate "2024.09.05"]
[EventType "team-tourn"]
[EventCountry "HUN"]
[SourceTitle "playchess.com"]
[Source "ChessBase"]
[SourceQuality "1"]
[WhiteTeam "Hungary C"]
[BlackTeam "Lebanon"]
[BlackTeamCountry "LBN"]
[TimeControl "40/5400+30:1800+30"]

{[%evp 19,71,33,30,33,28,37,40,2,45,39,19,27,40,41,67,62,81,55,58,20,109,94,80,55,55,54,47,41,35,44,49,42,53,56,53,54,159,159,231,218,232,225,449,446,922,852,2450,1470,1258,1233,29991,1253,1253,1147]} 1. e4 c5 2. Nf3 d6 3. Bb5+ Bd7 4. Bxd7+ Qxd7 5. c4 Nf6 6. Nc3 Nc6 7. d4 cxd4 8. Nxd4 g6 9. f3 Nxd4 10. Qxd4 Bg7 11. Be3 O-O {[%cal Of6g4]} 12. Qd3 $1 Rfc8 13. Rc1 {White is slightly better.} Qd8 14. O-O Nd7 15. b3 {[%cal Bb2b3,Bb3b4][%mdl 32]} Nc5 16. Qe2 e6 17. Rfd1 Qe7 18. Nb5 Rd8 19. b4 Na6 (19... Na4 $11 {keeps the balance.}) 20. a3 $16 (20. Bxa7 Nxb4 21. Rb1 Nc6 $14) 20... b6 21. Qd3 {[%cal Rb5d6]} Nc7 $1 22. Nxc7 Qxc7 23. Bf4 $36 {[%mdl 2048] White is more active.} Be5 24. Bg5 f6 25. Be3 d5 26. cxd5 Bxh2+ 27. Kf1 Qe5 (27... Qe7 $14) 28. Bd4 Qg5 (28... Qh5 $16) 29. Qc3 e5 30. Be3 Qh4 (30... Bf4 {might work better.}) 31. Qc6 $18 {[#] Qe6+ would now be deadly.} Bg3 {Black is weak on the light squares} (31... Bf4 $142) 32. Ke2 {Intending Rh1 and mate.} Bf4 33. Qe6+ Kh8 34. Rh1 {Active counter play!} Qg5 {[#]} 35. Rxh7+ Kxh7 36. Qf7+ {Weighted Error Value: White=0.09 (flawless) /Black=0.55.  Mistake:       	---       	Black=5      Inaccurate:     	White=3     	Black=3      OK:         	White=12    	Black=7      Best:        	White=1     	Black=1      Strong:       	White=1     	Black=1} 1-0

[Event "45th FIDE Olympiad 2024"]
[Site "Budapest"]
[Date "2024.09.15"]
[Round "5.137"]
[White "Rakotomaharo, Fy Antenaina"]
[Black "Sipila, Vilka"]
[Result "1-0"]
[ECO "B90"]
[WhiteElo "2440"]
[BlackElo "2462"]
[Annotator "TA"]
[PlyCount "61"]
[EventDate "2024.09.05"]
[EventType "team-tourn"]
[EventCountry "HUN"]
[SourceTitle "playchess.com"]
[Source "ChessBase"]
[SourceQuality "1"]
[WhiteTeam "Madagascar"]
[BlackTeam "Finland"]
[WhiteTeamCountry "MAD"]
[BlackTeamCountry "FIN"]
[TimeControl "40/5400+30:1800+30"]

{[%evp 12,61,17,0,8,0,0,0,0,-28,-19,-31,-36,-35,-33,-27,0,-45,49,0,0,0,0,-17,0,-24,-39,-18,0,0,0,0,0,0,0,0,16,8,29,26,28,50,48,47,189,160,649,625,1248,1280,952,641]} 1. e4 c5 2. Nf3 d6 3. d4 cxd4 4. Nxd4 Nf6 5. Nc3 a6 6. h3 e5 7. Nb3 Be6 8. Be3 Be7 9. Qf3 O-O {The position is equal.} 10. O-O-O b5 11. g4 b4 12. Nd5 Nxd5 13. exd5 Bc8 14. Nd2 (14. Bd3 {keeps more tension.} a5 15. Nc5 dxc5 16. d6) 14... f5 (14... a5 $15) 15. gxf5 (15. Nc4 $1 $14) 15... Bxf5 $11 {[#] And now ...Qa5 would win.} 16. Ne4 a5 17. Bd3 {[%cal Oh3h4]} a4 18. Nf6+ Rxf6 19. Bxf5 {[#]} b3 $1 20. a3 Qf8 21. Be6+ {A strong pair of Bishops.} Kh8 22. Qg4 Na6 23. Qxa4 Nc5 (23... bxc2 $5 24. Rd2 (24. Qxc2 $2 Rxe6 25. Kb1 Rf6 $19) (24. Kxc2 Nc5 $15) 24... Rxe6 25. dxe6 d5 $16) 24. Qc4 $36 {[%mdl 2048] White has the initiative.} bxc2 25. Rd2 (25. Kxc2 $2 {loses.} Nxe6 26. Kb1 Nf4 $19) 25... Ra5 26. Rxc2 (26. Rg1 {with more complications.} Qe8 27. Rxc2 Ra4 28. Qc3) 26... Qa8 {Threatens to win with ...Rxe6.} 27. Rd1 Nxe6 {This move loses the game for Black.} (27... Rf8 $14) 28. dxe6 $18 {Black must now prevent Qc7.} d5 $2 (28... Qf8 $16 29. Qc8 h6) 29. Qc7 {[%csl LRe5,LRe7] White is clearly winning.} Qd8 30. Qxd8+ Bxd8 31. Bg5 {Weighted Error Value: White=0.08 (flawless) /Black=0.44.  Loses game:     	---       	Black=1      Mistake:       	White=1     	Black=2      Inaccurate:     	White=2     	Black=2      OK:         	White=11    	Black=7      Best:        	White=1     	Black=2} 1-0